bitfinex-derivatives/quotes_ETHF0:USTF0_20250421
["timestamp","ask_amount","ask_price","bid_price","bid_amount"]
[1745240932326,1.23476,1619.8,1619.7,42.5282]
[1745240932725,2.94656,1619.9,1619.7,46.97077]
[1745240932925,1.23466,1619.9,1619.8,1.23469]
[1745240933122,2.94647,1620.0,1619.7,45.736]
[1745240933433,1.23461,1619.9,1619.8,1.23469]
[1745240933622,2.94648,1620.0,1619.8,1.23463]
[1745240933828,1.23458,1620.0,1619.9,1.7282]
[1745240934428,4.79828,1620.0,1619.7,3.2078]
[1745240934633,1.23472,1619.8,1619.7,1.23474]
[1745240934833,7.29773,1619.8,1619.3,3.2078]
[1745240935033,3.08731,1619.5,1619.1,3.2078]
[1745240935234,1.23515,1619.2,1619.1,3.2078]
[1745240935532,1.23515,1619.2,1619.1,44.0078]
[1745240937526,1.23515,1619.2,1619.1,45.24302]
[1745240937722,3.2078,1619.4,1619.2,1.23515]
[1745240937932,1.23515,1619.2,1619.1,45.24299]
[1745240938134,1.23515,1619.2,1619.1,44.0078]
[1745240938325,2.87113,1619.3,1619.1,45.24301]
[1745240939336,1.636,1619.3,1619.1,44.0078]
[1745240939537,1.636,1619.3,1619.2,1.23515]
[1745240939737,0.00924784,1619.5,1619.4,1.235]
[1745240940237,1.24416784,1619.5,1619.4,1.235]
[1745240940438,0.00924784,1619.5,1619.4,1.235]
[1745240941135,0.00924784,1619.5,1619.4,4.4428]
[1745240942032,5.984,1619.6,1619.5,1.23492]
[1745240942237,5.984,1619.9,1619.7,1.23472]
[1745240942437,8.83656,1619.9,1619.7,1.23472]
[1745240942738,8.83656,1619.9,1619.7,1.2347]
[1745240943338,8.83656,1619.9,1619.6,3.2078]
[1745240943529,8.83656,1619.9,1619.7,1.2347]
[1745240944135,1.23469,1619.8,1619.7,1.2347]
[1745240944428,1.6971,1619.8,1619.7,1.23477]
[1745240944835,1.6971,1619.8,1619.5,0.8224]
[1745240945038,6.29473,1619.7,1619.3,1.24425784]
[1745240945341,1.23499,1619.5,1619.3,0.00924784]
[1745240945640,2.9321,1619.4,1619.3,1.24428784]
[1745240945841,1.6971,1619.4,1619.3,1.24428784]
[1745240946340,1.7239,1619.6,1619.5,1.23492]
[1745240947641,4.71064,1619.6,1619.4,3.00964]
[1745240947844,1.23492,1619.5,1619.4,3.00964]
[1745240948041,2.98682,1619.5,1619.4,1.235]
[1745240948442,1.7519,1619.5,1619.3,4.99174784]
[1745240948641,1.7519,1619.5,1619.3,3.21704784]
[1745240948844,1.7519,1619.5,1619.4,1.235]
[1745240949038,2.98686,1619.5,1619.3,3.21704784]
[1745240949243,1.7519,1619.5,1619.4,1.235]
[1745240949548,2.98682,1619.5,1619.4,1.235]
[1745240950347,1.7519,1619.5,1619.4,1.235]
[1745240950738,5.984,1619.7,1619.6,1.23484]
[1745240951042,5.984,1619.7,1619.6,4.44264]
[1745240951750,5.223,1619.9,1619.8,1.23469]
[1745240951751,0.843,1619.9,1619.8,1.23469]
[1745240952044,7.65894784,1620.0,1619.9,1.23461]
[1745240952245,1.23473,1619.8,1619.6,4.8616]
[1745240952447,1.6657,1619.7,1619.6,6.09644]
[1745240952842,2.90047,1619.7,1619.6,3.2078]
[1745240953048,1.23489,1619.6,1619.3,3.21704784]
[1745240953244,1.7462,1619.6,1619.5,1.23488]
[1745240953649,2.98107,1619.6,1619.4,1.6712]
[1745240953848,1.23492,1619.5,1619.4,1.6712]
[1745240954145,1.235,1619.4,1619.3,3.21704784]
[1745240954353,0.8177,1619.4,1619.3,4.45211784]
[1745240954956,3.7989,1619.4,1619.3,3.21704784]
[1745240955154,3.2078,1619.7,1619.6,1.23484]
[1745240955453,1.23475,1619.8,1619.4,3.91309]
[1745240955649,1.7462,1619.7,1619.6,1.23484]
[1745240956052,2.07573784,1620.0,1619.5,4.879]
[1745240956354,1.6511,1619.9,1619.8,1.23464]
[1745240956556,6.45573784,1620.0,1619.7,3.2078]
[1745240956557,0.84114784,1620.0,1619.9,1.23461]
[1745240957148,3.72678784,1620.0,1619.9,1.23461]
[1745240957352,2.49224784,1620.0,1619.9,1.23461]
[1745240957956,3.72678784,1620.0,1619.9,1.23461]
[1745240959458,0.00924784,1620.0,1619.9,1.23461]
[1745240959853,1.76614784,1620.0,1619.9,1.23461]
[1745240960053,0.00924784,1620.0,1619.9,1.23461]
[1745240962051,3.2078,1620.1,1620.0,1.23454]
[1745240962256,6.8337,1620.3,1620.2,1.23439]
[1745240962455,6.8337,1620.3,1620.1,3.2078]
[1745240962653,1.6825,1620.2,1620.1,4.4422]
[1745240963056,2.91689,1620.2,1620.1,4.4422]
[1745240963256,2.91689,1620.2,1620.1,45.2422]
[1745240963752,1.6825,1620.2,1620.1,45.2422]
[1745240964353,2.91689,1620.2,1620.1,44.0078]
[1745240964557,1.6825,1620.2,1620.1,44.0078]
[1745240964855,1.6825,1620.2,1619.3,3.21704784]
[1745240964856,3.08646,1620.0,1619.3,3.21704784]
[1745240965151,3.2078,1619.7,1619.3,1.73344784]
[1745240965355,1.235,1619.4,1619.3,0.00924784]
[1745240965758,4.6484,1619.4,1619.3,40.80924784]
[1745240968459,1.23518,1619.2,1619.0,1.23528]
[1745240968756,1.23522,1619.1,1619.0,1.7739]
[1745240968947,6.29551,1619.3,1618.8,4.0657]
[1745240969150,6.29551,1619.3,1618.8,3.00934]
[1745240969151,2.88066,1619.0,1618.8,3.00934]
[1745240969347,4.45230784,1619.1,1618.9,42.03538]
[1745240969553,4.45230784,1619.1,1619.0,1.7739]
[1745240969861,1.24450784,1619.1,1619.0,1.7739]
[1745240970355,4.45230784,1619.1,1619.0,1.7739]
[1745240970556,1.2353,1619.0,1618.9,40.8]
[1745240970755,2.8806,1619.0,1618.9,40.8]
[1745240971157,2.8806,1619.0,1618.9,42.5739]
[1745240971468,1.6453,1619.0,1618.9,43.80928]
[1745240971654,2.8806,1619.0,1618.9,42.5739]
[1745240972060,0.00924784,1619.1,1619.0,1.2353]
[1745240972260,0.00924784,1619.1,1619.0,3.6947]
[1745240972465,0.00924784,1619.1,1619.0,13.0757]
[1745240973056,0.00924784,1619.1,1619.0,14.2217]
[1745240973964,5.984,1619.2,1619.1,1.23522]
[1745240974164,5.984,1619.2,1619.1,3.70852]
[1745240974354,5.984,1619.2,1619.1,8.70852]
[1745240974559,3.2078,1619.5,1619.4,1.235]
[1745240975158,11.05941038,1619.6,1619.3,1.6458]
[1745240975363,11.05941038,1619.6,1619.4,1.23494]
[1745240975665,2.93244784,1619.6,1619.5,1.6458]
[1745240975966,0.00924784,1619.6,1619.5,2.88072]
[1745240976466,8.12696254,1619.9,1619.8,1.23469]
[1745240976871,8.12696254,1619.9,1619.8,6.23469]
[1745240977465,10.16213808,1620.1,1620.0,1.23454]
[1745240978166,3.69725,1620.0,1619.9,5.66861]
[1745240978353,3.69725,1620.0,1619.9,51.46861]
[1745240978559,3.69725,1620.0,1619.9,46.46861]
[1745240979164,3.69725,1620.0,1619.9,52.61461]
[1745240980164,3.69725,1620.0,1619.9,46.46861]
[1745240983165,3.69725,1620.0,1619.9,52.61461]
[1745240984067,3.69725,1620.0,1619.9,46.46861]
[1745240987073,5.43725,1620.0,1619.9,46.46861]
[1745240988067,5.43725,1620.0,1619.9,52.61461]
[1745240989173,3.69725,1620.0,1619.9,52.61461]
[1745240995372,6.69749,1620.0,1619.9,52.61461]
[1745240995876,1.23469,1619.8,1619.7,0.00924784]
[1745240996176,4.44249,1619.8,1619.7,0.00924784]
[1745240996371,4.44249,1619.8,1619.7,40.80924784]
[1745240997476,4.44249,1619.8,1619.7,42.04401784]
[1745240997775,3.2078,1619.8,1619.7,42.04401784]
[1745240998176,3.2078,1619.8,1619.7,48.19001784]
[1745240998580,3.2078,1619.8,1619.7,50.67021784]
[1745240999881,3.2078,1619.8,1619.7,48.61384784]
[1745241000073,3.2078,1619.8,1619.7,49.84861784]
[1745241000382,4.44249,1619.8,1619.7,48.61384784]
[1745241000578,6.08759,1619.8,1619.7,46.95524784]
[1745241000781,14.12363,1620.0,1619.8,1.23465]
[1745241001080,15.76873,1620.0,1619.8,2.87795]
[1745241001583,14.53415,1620.0,1619.7,46.95524784]
[1745241001783,2.87978,1619.9,1619.7,49.83328784]
[1745241001976,6.08759,1619.8,1619.7,46.95524784]
[1745241002180,1.6451,1619.8,1619.7,42.04401784]
[1745241002482,3.69725,1620.0,1619.9,1.23461]
[1745241002681,3.69725,1620.0,1619.9,4.44241]
[1745241003173,3.69725,1620.0,1619.9,9.13161]
[1745241003381,5.38925,1620.0,1619.9,9.13161]
[1745241003683,6.62379,1620.0,1619.9,7.897]
[1745241003981,5.38925,1620.0,1619.9,7.38061]
[1745241004280,6.62379,1620.0,1619.9,6.146]
[1745241004470,12.47039,1620.0,1619.9,6.146]
[1745241005171,1.23469,1619.8,1619.7,40.80924784]
[1745241005776,2.97859,1619.8,1619.7,40.80924784]
[1745241005981,8.96259,1619.8,1619.7,0.00924784]
[1745241006282,1.23503,1619.4,1619.2,6.08601]
[1745241006477,1.23503,1619.4,1619.3,40.8]
[1745241006478,1.235,1619.4,1619.3,40.8]
[1745241006976,1.235,1619.4,1619.3,42.03507]
[1745241007177,2.97886,1619.5,1619.3,42.03507]
[1745241007382,2.97886,1619.5,1619.4,1.235]
[1745241007575,2.97886,1619.5,1619.3,43.67811]
[1745241007777,1.7439,1619.5,1619.4,2.8781]
[1745241008080,12.46816,1619.6,1619.4,2.8781]
[1745241008281,12.46816,1619.6,1619.5,1.7787]
[1745241008472,8.07714,1619.6,1619.5,1.7787]
[1745241009081,8.07714,1619.6,1619.5,7.9247]
[1745241009785,6.8423,1619.6,1619.5,7.9247]
[1745241009979,5.984,1619.6,1619.5,7.9247]
[1745241010289,15.67075,1619.9,1619.7,1.23474]
[1745241010475,9.1918,1619.9,1619.8,3.01339]
[1745241010678,5.48125,1620.0,1619.9,1.23461]
[1745241010978,3.69725,1620.0,1619.9,3.01331]
[1745241011183,3.69725,1620.0,1619.9,9.15931]
[1745241011983,3.69725,1620.0,1619.9,9.98441]
[1745241015786,3.69725,1620.0,1619.9,13.19221]
[1745241017190,4.93179,1620.0,1619.9,6.146]
[1745241017381,6.54589,1620.0,1619.9,6.146]
[1745241017582,7.40859,1620.0,1619.9,6.146]
[1745241019291,7.40859,1620.0,1619.8,1.23468]
[1745241019486,7.40859,1620.0,1619.8,1.23462]
[1745241019788,1.23461,1619.9,1619.8,1.6709]
[1745241019990,2.84871,1619.9,1619.8,1.6709]
[1745241020188,1.6141,1619.9,1619.8,2.90559]
[1745241020589,2.84871,1619.9,1619.8,2.90559]
[1745241020893,1.6141,1619.9,1619.8,2.90559]
[1745241021394,4.55995,1620.0,1619.9,1.23461]
[1745241021586,3.69725,1620.0,1619.9,2.93341]
[1745241021988,4.93179,1620.0,1619.9,2.93341]
[1745241022188,4.93179,1620.0,1619.9,9.07941]
[1745241022388,4.93179,1620.0,1619.9,7.8448]
[1745241022989,4.93179,1620.0,1619.9,9.07941]
[1745241023795,3.69725,1620.0,1619.9,9.07941]
[1745241029594,3.69725,1620.0,1619.9,49.87941]
[1745241029801,0.00924784,1620.2,1620.1,1.23446]
[1745241030394,0.00924784,1620.2,1620.1,2.88626]
[1745241030596,0.00924784,1620.2,1620.1,43.68626]
[1745241032902,5.27362,1620.6,1620.2,3.08591]
[1745241033196,2.4471,1620.6,1620.5,1.23416]
[1745241033395,17.02063808,1620.8,1620.7,1.234]
[1745241033592,10.16213808,1620.8,1620.7,1.234]
[1745241033900,10.16213808,1620.8,1620.7,42.034]
[1745241034097,10.16213808,1620.8,1620.7,48.18]
[1745241034299,10.16213808,1620.8,1620.7,52.571]
[1745241034498,7.2748463,1620.8,1620.7,60.7788]
[1745241034802,5.9384463,1620.8,1620.7,60.7788]
[1745241034996,2.5386863,1620.8,1620.7,60.7788]
[1745241035198,4.14e-06,1620.9,1620.8,1.23393]
[1745241035503,7.93801984,1621.0,1620.9,1.23385]
[1745241035693,5.86002984,1621.0,1620.9,4.44165]
[1745241035894,5.86002984,1621.0,1620.9,6.07545]
[1745241036098,2.95379,1621.4,1621.2,1.2336]
[1745241036295,5.24659,1621.4,1621.1,4.363]
[1745241036498,5.24659,1621.4,1621.1,5.59663]
[1745241036698,4.0131,1621.4,1621.3,1.23355]
[1745241036895,0.82514784,1621.5,1621.4,1.23347]
[1745241036896,0.00924784,1621.5,1621.4,1.23347]
[1745241038300,0.00924784,1621.5,1621.4,7.37947]
[1745241038697,0.00924784,1621.5,1621.4,13.43187]
[1745241038895,0.00924784,1621.5,1621.4,11.74147]
[1745241039202,0.00924784,1621.5,1621.4,5.59547]
[1745241039390,0.00924784,1621.5,1621.4,7.28587]
[1745241040098,0.00924784,1621.5,1621.4,13.43187]
[1745241040491,0.00924784,1621.5,1621.4,11.74147]
[1745241041404,2.10994784,1621.5,1621.4,6.146]
[1745241041596,7.10994784,1621.5,1621.4,6.146]
[1745241041995,5.87654784,1621.5,1621.4,6.146]
[1745241042302,7.10994784,1621.5,1621.3,1.23351]
[1745241042496,0.87654784,1621.5,1621.4,1.23347]
[1745241042898,2.10995784,1621.5,1621.3,1.23352]
[1745241043105,0.87654784,1621.5,1621.4,1.23347]
[1745241045006,1.23351,1621.4,1621.2,1.23357]
[1745241045209,3.08388,1621.3,1620.9,40.8]
[1745241045499,3.08388,1621.3,1620.9,42.0338]
[1745241045500,1.23375,1621.1,1620.9,42.0338]
[1745241045700,1.6337,1621.0,1620.9,42.0338]
[1745241047002,1.6337,1621.0,1620.9,40.8]
[1745241047402,1.6337,1621.0,1620.9,42.03385]
[1745241047820,3.3286,1621.0,1620.9,42.03385]
[1745241048512,3.2078,1621.2,1621.1,1.2337]
[1745241048911,1.6949,1621.3,1621.2,1.23362]
[1745241049113,1.6949,1621.3,1621.2,7.37962]
[1745241049916,1.7134,1621.4,1621.3,1.23355]
[1745241050112,1.7134,1621.4,1621.2,7.37959]
[1745241050113,3.4083,1621.4,1621.2,7.37959]
[1745241050519,1.6949,1621.3,1621.2,7.37959]
[1745241051707,0.00924784,1621.5,1621.4,1.23347]
[1745241052121,0.00924784,1621.5,1621.4,7.37947]
[1745241052316,1.65704784,1621.5,1621.4,7.37947]
[1745241052816,2.89044784,1621.5,1621.4,7.37947]
[1745241053015,1.65704784,1621.5,1621.4,7.37947]
[1745241054514,1.65704784,1621.5,1621.4,9.05037]
[1745241056916,0.00924784,1621.5,1621.4,9.05037]
[1745241058220,0.00924784,1621.5,1621.4,7.37947]
[1745241058425,1.24264784,1621.5,1621.4,7.37947]
[1745241058626,0.00924784,1621.5,1621.4,7.37947]
[1745241059026,1.65034784,1621.5,1621.4,7.37947]
[1745241059925,1.65034784,1621.5,1621.4,9.03907]
[1745241060321,0.00924784,1621.5,1621.4,9.03907]
[1745241061324,1.24264784,1621.5,1621.4,7.37947]
[1745241061520,1.24264784,1621.5,1621.4,6.146]
[1745241061931,2.94344784,1621.5,1621.4,6.146]
[1745241062425,1.71004784,1621.5,1621.4,7.37947]
[1745241062817,2.94344784,1621.5,1621.4,7.37947]
[1745241063016,1.71004784,1621.5,1621.4,7.37947]
[1745241063625,0.00924784,1621.5,1621.4,7.37947]
[1745241064326,0.00924784,1621.5,1621.4,9.99607]
[1745241064529,0.00924784,1621.5,1621.4,15.84177]
[1745241065432,0.00924784,1621.5,1621.4,10.84177]
[1745241065834,0.00924784,1621.5,1621.4,15.84177]
[1745241066934,0.00924784,1621.5,1621.4,56.64177]
[1745241067235,7.5398,1622.3,1622.1,1.23291]
[1745241067236,9.1918,1622.3,1622.1,1.23291]
[1745241067432,1.6594,1622.3,1622.2,2.86226]
[1745241067727,1.6594,1622.3,1622.2,1.6294]
[1745241067929,2.89219,1622.3,1622.2,1.6294]
[1745241068129,2.89219,1622.3,1622.2,7.7754]
[1745241068723,2.89219,1622.3,1622.2,6.146]
[1745241068929,11.09999,1622.3,1622.2,6.146]
[1745241069130,1.23286,1622.2,1622.1,0.00924784]
[1745241069336,2.90966,1622.2,1622.1,0.00924784]
[1745241069634,7.90966,1622.2,1622.1,0.00924784]
[1745241070835,1.23312,1621.9,1621.7,1.23321]
[1745241071032,1.23322,1621.8,1621.5,2.96595]
[1745241071233,1.23322,1621.8,1621.4,45.9644]
[1745241071234,1.2334,1621.5,1621.4,46.946]
[1745241071434,4.44117,1621.6,1621.4,48.17945]
[1745241071735,2.9102,1621.5,1621.4,46.946]
[1745241072332,2.9102,1621.5,1621.4,48.17947]
[1745241072641,2.9102,1621.5,1621.4,46.946]
[1745241073344,7.9102,1621.5,1621.4,6.146]
[1745241074135,1.23347,1621.4,1621.3,0.00924784]
[1745241074437,10.42277,1621.4,1621.3,0.00924784]
[1745241074636,15.42277,1621.4,1621.3,0.00924784]
[1745241076139,10.42277,1621.4,1621.3,0.00924784]
[1745241078337,16.40677,1621.4,1621.3,0.00924784]
[1745241078540,21.40677,1621.4,1621.3,0.00924784]
[1745241080337,21.40677,1621.4,1621.3,7.84e-06]
[1745241080542,21.50859301,1621.4,1621.3,7.84e-06]
[1745241080745,21.40677,1621.4,1621.3,7.84e-06]
[1745241081047,21.50858939,1621.4,1621.3,7.84e-06]
[1745241081538,21.50858939,1621.4,1620.4,3.2078]
[1745241081539,20.27511939,1621.4,1620.5,1.7323]
[1745241081742,1.23408,1620.6,1620.5,1.7323]
[1745241081937,4.44188,1620.6,1620.5,1.7323]
[1745241082142,4.44188,1620.6,1620.5,7.8783]
[1745241082541,6.10968,1620.6,1620.5,7.8783]
[1745241082937,2.90188,1620.6,1620.5,7.8783]
[1745241084247,6.10968,1620.6,1620.5,6.146]
[1745241085847,10.44268,1620.6,1620.5,6.146]
[1745241086147,1.23416,1620.5,1620.4,46.95524784]
[1745241086346,3.00246,1620.5,1620.4,46.95524784]
[1745241086939,1.23416,1620.5,1620.4,46.95524784]
[1745241087143,1.23416,1620.5,1620.4,54.33547784]
[1745241087448,1.23416,1620.5,1620.4,48.18947784]
[1745241087655,1.24338784,1620.6,1620.5,1.23416]
[1745241087946,1.24338784,1620.6,1620.5,4.66306]
[1745241088146,1.24338784,1620.6,1620.5,10.80906]
[1745241088547,1.24338784,1620.6,1620.5,9.5749]
[1745241089453,0.00924784,1620.6,1620.5,10.80906]
[1745241089646,0.00924784,1620.6,1620.5,15.80906]
[1745241089847,3.2078,1620.8,1620.7,1.234]
[1745241090055,3.2078,1620.8,1620.7,1.2194]
[1745241090252,8.91146,1621.1,1620.7,8.08497]
[1745241090549,5.984,1621.1,1621.0,1.23378]
[1745241091137,0.00924784,1621.2,1621.1,1.2337]
[1745241091541,0.00924784,1621.2,1621.1,2.9762]
[1745241091851,5.984,1621.5,1621.4,1.23347]
[1745241092151,1.23335,1621.6,1621.4,7.37947]
[1745241092345,1.23335,1621.6,1621.5,42.5425]
[1745241092853,7.2172,1621.8,1621.6,1.23332]
[1745241093050,7.2172,1621.8,1621.7,1.7425]
[1745241093355,1.2332,1621.8,1621.7,1.7425]
[1745241093652,1.24237784,1621.9,1621.7,2.97572]
[1745241093843,0.00924784,1621.9,1621.8,1.23317]
[1745241094451,0.00924784,1621.9,1621.8,40.8]
[1745241094653,0.00924784,1621.9,1621.8,42.03317]
[1745241098154,1.24233784,1621.9,1621.8,42.03317]
[1745241098354,2.95153784,1621.9,1621.8,42.03317]
[1745241098556,1.71844784,1621.9,1621.8,42.03317]
[1745241099454,2.95153784,1621.9,1621.8,42.03317]
[1745241099752,1.71844784,1621.9,1621.8,42.03317]
[1745241099956,0.00924784,1621.9,1621.8,42.03317]
[1745241100753,1.24233784,1621.9,1621.8,42.03317]
[1745241101160,1.24233784,1621.9,1621.8,40.8]
[1745241101161,2.94213784,1621.9,1621.8,40.8]
[1745241101359,2.94213784,1621.9,1621.8,42.03317]
[1745241101656,2.94213784,1621.9,1621.8,43.73067]
[1745241101858,2.94213784,1621.9,1621.8,42.4975]
[1745241103262,0.00924784,1621.9,1621.8,43.73067]
[1745241103451,0.00924784,1621.9,1621.8,44.60307]
[1745241106055,1.24233784,1621.9,1621.8,43.3699]
[1745241106261,1.24233784,1621.9,1621.8,42.4975]
[1745241106754,2.86213784,1621.9,1621.8,42.4975]
[1745241107551,2.86213784,1621.9,1621.8,40.8]
[1745241107759,3.71473784,1621.9,1621.8,40.8]
[1745241108858,3.71473784,1621.9,1621.8,42.03317]
[1745241109165,3.71473784,1621.9,1621.8,40.8]
[1745241110359,5.56441784,1621.9,1621.5,1.23338]
[1745241110564,1.2334,1621.5,1621.4,2.91381784]
[1745241111070,4.4412,1621.5,1621.4,9.05981784]
[1745241111368,4.4412,1621.5,1621.4,49.85981784]
[1745241113563,4.4412,1621.5,1621.4,46.95524784]
[1745241113769,4.4412,1621.5,1621.4,48.18871784]
[1745241114562,6.1534,1621.5,1621.4,48.18871784]
[1745241115869,6.1534,1621.5,1621.4,46.95524784]
[1745241116068,7.0276,1621.5,1621.4,48.18871784]
[1745241116567,13.0116,1621.5,1621.4,48.18871784]
[1745241117173,10.904,1621.5,1621.4,48.18871784]
[1745241117476,9.1918,1621.5,1621.4,48.18871784]
[1745241117977,9.1918,1621.5,1621.4,49.03371784]
[1745241118973,9.1918,1621.5,1621.4,50.68001784]
[1745241122279,3.2078,1621.5,1621.4,50.68001784]
[1745241126178,5.984,1621.7,1621.6,1.23332]
[1745241126381,9.1918,1621.7,1621.6,1.23332]
[1745241127280,5.984,1621.7,1621.6,1.23332]
[1745241127482,7.21724,1621.7,1621.6,2.96562]
[1745241127677,8.92884,1621.7,1621.6,2.96562]
[1745241128178,1.7116,1621.7,1621.6,2.96562]
[1745241128884,2.94484,1621.7,1621.6,2.96562]
[1745241129183,1.2334,1621.5,1621.4,40.80924784]
[1745241129484,1.2334,1621.5,1621.4,42.04271784]
[1745241129681,4.4412,1621.5,1621.4,42.04271784]
[1745241130183,4.4412,1621.5,1621.4,48.18871784]
[1745241130684,4.4412,1621.5,1621.4,46.95524784]
[1745241130876,4.4412,1621.5,1621.4,48.18871784]
[1745241131076,11.3087,1621.5,1621.4,46.95524784]
[1745241131279,11.3087,1621.5,1621.4,6.15524784]
[1745241131578,13.0777,1621.5,1621.4,6.15524784]
[1745241131777,13.0777,1621.5,1621.4,7.38871784]
[1745241131972,13.9472,1621.5,1621.4,7.38871784]
[1745241132174,12.7138,1621.5,1621.4,7.38871784]
[1745241132479,12.7138,1621.5,1621.4,9.02161784]
[1745241132684,9.506,1621.5,1621.4,9.02161784]
[1745241133183,10.7394,1621.5,1621.4,9.02161784]
[1745241133783,13.9472,1621.5,1621.4,9.02161784]
[1745241134680,17.7138,1621.5,1620.6,3.2078]
[1745241134882,1.23391,1620.9,1620.8,1.23393]
[1745241135083,3.08465,1620.9,1620.7,6.146]
[1745241135277,3.81043,1620.8,1620.7,6.146]
[1745241135471,7.01823,1620.8,1620.7,6.146]
[1745241135677,7.01823,1620.8,1620.7,46.946]
[1745241136285,7.01823,1620.8,1620.7,40.8]
[1745241136683,18.00223,1620.8,1620.7,40.8]
[1745241137885,1.234,1620.7,1620.6,0.00924784]
[1745241138091,8.0689,1620.7,1620.6,0.00924784]
[1745241138383,13.0689,1620.7,1620.6,40.80924784]
[1745241139586,8.0689,1620.7,1620.6,40.80924784]
[1745241139885,14.0529,1620.7,1620.6,40.80924784]
[1745241141686,14.0529,1620.7,1620.6,42.42274784]
[1745241141881,14.0529,1620.7,1620.6,40.80924784]
[1745241144087,13.2054,1620.7,1620.6,42.04332784]
[1745241144283,13.2054,1620.7,1620.6,42.49934784]
[1745241147596,13.2054,1620.7,1620.6,43.73342784]
[1745241147886,13.2054,1620.7,1620.6,42.49934784]
[1745241148491,8.9684,1620.7,1620.6,43.73342784]
[1745241148687,8.9684,1620.7,1620.6,42.49934784]
[1745241150495,8.9684,1620.7,1620.6,43.73342784]
[1745241150789,7.218,1620.7,1620.6,44.55452784]
[1745241151892,0.00924784,1620.9,1620.8,1.23393]
[1745241152088,3.2078,1621.3,1621.2,1.23362]
[1745241152482,3.2078,1621.3,1621.2,42.03362]
[1745241152685,10.29743,1621.5,1621.4,1.23347]
[1745241152889,10.29746,1621.5,1621.4,1.23347]
[1745241153291,8.68026,1621.5,1621.4,9.03387]
[1745241153493,3.2078,1621.5,1621.4,9.03387]
[1745241153891,1.2334,1621.5,1621.4,7.8004]
[1745241154089,6.0584,1621.5,1621.4,7.8004]
[1745241154289,6.0584,1621.5,1621.4,9.03387]
[1745241154592,6.0584,1621.5,1621.4,7.8004]
[1745241155187,4.825,1621.5,1621.4,9.03387]
[1745241155391,1.25712784,1621.6,1621.4,7.8004]
[1745241155698,1.25712784,1621.6,1621.5,1.7021]
[1745241155884,2.87992784,1621.6,1621.5,2.9355]
[1745241156091,2.86542784,1621.6,1621.5,1.7021]
[1745241157097,2.86542784,1621.6,1621.5,7.8481]
[1745241158000,2.86542784,1621.6,1621.5,9.0815]
[1745241158299,1.63204784,1621.6,1621.5,9.0815]
[1745241158499,2.86536784,1621.6,1621.5,9.0815]
[1745241160398,0.00924784,1621.6,1621.5,9.0815]
[1745241163202,4.45036784,1621.6,1621.5,9.0815]
[1745241163503,4.45036784,1621.6,1621.5,7.8481]
[1745241163801,4.45036784,1621.6,1621.5,9.0815]
[1745241166295,0.00924784,1621.6,1621.5,9.0815]
[1745241167000,1.24256784,1621.6,1621.5,9.0815]
[1745241167802,4.45036784,1621.6,1621.5,6.146]
[1745241168404,4.45036784,1621.6,1621.5,7.3794]
[1745241168595,4.45036784,1621.6,1621.5,9.0325]
[1745241169593,4.45036784,1621.6,1621.5,7.7991]
[1745241169797,4.45036784,1621.6,1621.5,9.0325]
[1745241169992,4.45036784,1621.6,1621.5,7.7991]
[1745241170397,6.17896784,1621.6,1621.5,7.7991]
[1745241171106,6.17896784,1621.6,1621.5,9.0325]
[1745241171309,6.17896784,1621.6,1621.5,7.7991]
[1745241171611,15.42096784,1621.6,1621.5,6.146]
[1745241171803,16.22776784,1621.6,1621.5,0.15275216]
[1745241172103,1.23355,1621.3,1621.2,42.5422]
[1745241172295,4.44135,1621.3,1621.2,40.8]
[1745241173008,6.18045,1621.3,1621.2,42.03362]
[1745241173205,4.9469,1621.3,1621.2,48.17962]
[1745241173507,3.2078,1621.3,1621.2,48.17962]
[1745241174305,4.44135,1621.3,1621.2,48.17962]
[1745241174606,0.0145,1621.4,1621.3,1.23355]
[1745241174901,7.21452,1621.5,1621.4,1.23347]
[1745241175305,7.21452,1621.5,1621.4,2.92707]
[1745241175507,10.42232,1621.5,1621.4,1.6936]
[1745241176007,1.23355,1621.3,1621.2,46.946]
[1745241176308,4.44135,1621.3,1621.2,40.8]
[1745241176608,4.44135,1621.3,1621.2,42.03362]
[1745241176906,6.14695,1621.3,1621.2,42.03362]
[1745241177406,6.14695,1621.3,1621.2,48.17962]
[1745241178303,6.14695,1621.3,1621.2,46.946]
[1745241178910,6.14695,1621.3,1621.2,48.17962]
[1745241180307,4.9134,1621.3,1621.2,48.17962]
[1745241180513,8.68325,1621.5,1621.4,1.23347]
[1745241180711,4.44125,1621.5,1621.4,1.23347]
[1745241181009,3.2078,1621.5,1621.4,1.23347]
[1745241181209,3.2078,1621.5,1621.4,9.15357]
[1745241181612,0.02374784,1621.6,1621.5,1.2334]
[1745241181815,3.21704784,1621.6,1621.5,3.0075]
[1745241182005,4.45036784,1621.6,1621.5,3.0075]
[1745241182206,6.17106784,1621.6,1621.5,9.1535]
[1745241184613,4.45036784,1621.6,1621.5,9.1535]
[1745241191421,1.24256784,1621.6,1621.5,9.1535]
[1745241192925,3.02666784,1621.6,1621.5,9.1535]
[1745241193730,1.24256784,1621.6,1621.5,9.1535]
[1745241193918,0.00924784,1621.6,1621.5,9.1535]
[1745241194826,1.24256784,1621.6,1621.5,9.1535]
[1745241195324,0.00924784,1621.6,1621.5,9.1535]
[1745241195624,1.24256784,1621.6,1621.5,9.1535]
[1745241195921,0.0145,1621.7,1621.6,1.23332]
[1745241196120,0.0145,1621.7,1621.6,3.89502]
[1745241196323,3.2078,1621.9,1621.8,1.23317]
[1745241197524,3.2078,1621.9,1621.8,2.86657]
[1745241200420,7.63970251,1622.0,1621.9,1.23309]
[1745241200421,6.00450251,1622.0,1621.9,1.23309]
[1745241200729,6.00450251,1622.0,1621.9,3.77609]